Cogmind - Beta 14 @@@ ROGUE MODE // 2024.10.26 @ 11:12:44 Player: dullfocus Result: Destroyed by G-47 Trooper with Particle Gun Performance ------------- Evolutions (0) 0 Regions Visited (1) 200 Robots Destroyed (12) 60 Value Destroyed (334) 334 Prototype IDs (2) 40 Alien Tech Used (0) 0 Bonus (0) 0 TOTAL SCORE: 634 Bonus ------- None Cogmind --------- Core Integrity 0/250 Matter 171/300 Energy 250/250 System Corruption 0% Temperature Cool (15) Movement Core (1400) Ox27 Location -10/Materials Parts ------- > --- POWER (1) -------- (None) > --- PROPULSION (2) --- (None) > --- UTILITY (2) ------ Huge Storage Unit Medium Battery > --- WEAPON (2) ------- (None) > --- INVENTORY (25) --- Large Storage Unit Huge Storage Unit Sensor Array Sensor Array Weapon Shielding Light Cannon Peak State ------------ > --- POWER ------------ Light Ion Engine > --- PROPULSION ------- Aluminum Leg Aluminum Leg > --- UTILITY ---------- Large Storage Unit Weapon Shielding > --- WEAPON ----------- Assault Rifle Assault Rifle > --- INVENTORY -------- Light Ion Engine Huge Storage Unit Medium Battery Sensor Array Sensor Array Sensor Array Sensor Array Medium Laser Light Cannon Grenade Launcher [Rating: 8] Favorites ----------- Power Light Ion Engine Engine Light Ion Engine Propulsion Aluminum Leg Leg Aluminum Leg Utility Huge Storage Unit Device Sensor Array Storage Huge Storage Unit Protection Weapon Shielding Weapon Assault Rifle Energy Gun Medium Laser Ballistic Gun Assault Rifle Ballistic Cannon Light Cannon Launcher Grenade Launcher Build | -11 -10 ------- Run | Yrd Mat Slots Evolved . | . . Power . | . . Propulsion . | . . Utility . | . . Weapon . | . . Parts Attached 16 | 5 11 Power 2 | 1 1 Engine 2 | 1 1 Core . | . . Reactor . | . . Propulsion 3 | 2 1 Treads . | . . Leg 3 | 2 1 Wheel . | . . Hover . | . . Flight . | . . Utility 5 | . 5 Device 1 | . 1 Storage 3 | . 3 Processor . | . . Hackware . | . . Protection 1 | . 1 Artifact . | . . Weapon 6 | 2 4 Energy Gun 1 | . 1 Energy Cannon . | . . Ballistic Gun 3 | 2 1 Ballistic Cannon 1 | . 1 Launcher 1 | . 1 Special Weapon . | . . Impact Weapon . | . . Slashing Weapon . | . . Piercing Weapon . | . . Special Melee Weapon . | . . Unidentified Prototypes . | . . Parts Lost 10 | . 10 Power 2 | . 2 Propulsion 3 | . 3 Utility 1 | . 1 Weapon 4 | . 4 Highest Loss Streak 4 | . 4 To Critical Strikes . | . . Average Slot Usage (%) 72 | . 72 Engine 8 | . 8 Leg 17 | . 17 Device 2 | . 2 Storage 15 | . 15 Protection 3 | . 3 Ballistic Gun 17 | . 17 Ballistic Cannon 3 | . 3 Launcher 1 | . 1 Peak Build Rating 8 | 5 8 Average Rating 5 | 3 5 On Entrance 2 | . 5 Naked Turns . | . . Heaviest Build 88 | 7 88 Greatest Support 20 | 20 20 Greatest Overweight (x) 29 | . 29 Average Overweight (x) 1 | . 2 Largest Inventory Capacity 25 | 5 25 Average Capacity 16 | 5 18 Most Carried 14 | 3 14 Average Carried 6 | 2 7 Final Capacity 25 | 5 25 Final Carried 6 | 3 6 Class Distribution -------------------- 100% | Mutant Dominant Class ---------------- Mutant | -10/Materials Resources | -11 -10 ----------- Run | Yrd Mat Matter Collected 405 | 262 143 Remotely . | . . Salvage Created 388 | 31 357 Parts 31 | 2 29 Haulers Intercepted 1 | . 1 Recyclers Shooed . | . . Parts Field Recycled . | . . Retrieved Matter . | . . Parts Self-Destructed . | . . Prevented . | . . Kills | -11 -10 ------- Run | Yrd Mat Combat Hostiles Destroyed 8 | 1 7 Guns 4 | 1 3 Cannons 2 | . 2 AOE 2 | . 2 Classes Destroyed 5 | 1 4 Builder 1 | . 1 Hauler 1 | . 1 Recycler 1 | . 1 Watcher 1 | . 1 Grunt 8 | 1 7 Best Kill Streak 5 | 1 5 Combat Bots Only 2 | 1 2 Max Kills in Single Turn 2 | 1 2 Gunslinging . | . . Exploded 1 | . 1 Melee . | . . Uniques/NPCs Destroyed . | . . Combat | -11 -10 -------- Run | Yrd Mat Hostile Shots Fired 122 | 3 119 Missed 28 | 3 25 Damage Taken 1152 | . 1152 Core 267 | . 267 Absorbed by Shields . | . . Redirected to Shielding 3 | . 3 Core Remaining (%) 100 | 100 . Volleys Fired 39 | 2 37 Largest 2 | 2 2 Hottest 80 | 40 80 Shots Fired 71 | 4 67 Gun 60 | 4 56 Cannon 8 | . 8 Launcher 3 | . 3 Special . | . . Kinetic 62 | 4 58 Thermal 6 | . 6 Explosive 3 | . 3 Electromagnetic . | . . Robot Hit Streak 8 | 2 8 Robot Miss Streak 4 | 1 4 Penetration Max . | . . Secondary Targets . | . . Shots Hit Robots 39 | 2 37 Core Hits 17 | 2 15 Critical Kills . | . . Critical Parts Destroyed . | . . Critical Strikes 1 | . 1 Blast 1 | . 1 Melee Attacks . | . . Impact . | . . Slashing . | . . Piercing . | . . Sneak Attacks . | . . Combat Hostiles . | . . Follow-up Attacks . | . . Damage Inflicted 693 | 24 669 Guns 397 | 24 373 Cannons 85 | . 85 Explosions 211 | . 211 Melee . | . . Ramming . | . . Kinetic 445 | 24 421 Thermal 37 | . 37 Explosive 211 | . 211 Electromagnetic . | . . Impact . | . . Slashing . | . . Piercing . | . . Highest Corruption . | . . Average Corruption . | . . Corruption Purged . | . . Corruption Blocked . | . . Overload Shots . | . . Overflow Damage 20 | . 20 Projectiles . | . . Explosions 20 | . 20 Melee . | . . Knockbacks 1 | . 1 Impact . | . . Kinetic 1 | . 1 Secondary . | . . Self-Inflicted Damage 44 | . 44 Shots 2 | . 2 Rammed . | . . Targets Rammed . | . . Kicked . | . . Crushed . | . . Highest Temperature 38 | . 38 Average Temperature 17 | . 17 Received Heat Transfer 606 | . 606 Siege Activations . | . . Robots Corrupted . | . . Combat Hostiles . | . . Parts Fried . | . . Impact Corruptions . | . . Robots Melted . | . . Combat Hostiles . | . . Parts Melted . | . . Heat Transferred 111 | . 111 Parts Sabotaged . | . . Parts Stolen . | . . Parts Stripped . | . . Power Chain Reactions . | . . Alert | -11 -10 ------- Run | Yrd Mat Peak Influence 125 | 20 125 Initial 13 | . 13 Average 49 | 2 56 Maximum Alert Level . | . . Low Security (%) 100 | 100 100 Level 1 . | . . Level 2 . | . . Level 3 . | . . Level 4 . | . . Level 5 . | . . High Security . | . . Max Security . | . . Squads Dispatched 3 | . 3 Investigation 2 | . 2 Extermination . | . . Reinforcement 1 | . 1 Assault . | . . Garrison . | . . Intercept . | . . Searches Triggered . | . . Construction Impeded . | . . Haulers Reinforced . | . . Active Scanning Responses . | . . Cargo Convoy Interrupts . | . . Stealth | -11 -10 --------- Run | Yrd Mat Distress Signals 5 | . 5 Communications Jammed . | . . Distress Signals . | . . Times Spotted 20 | 1 19 Peak Tracking Total 4 | 1 4 Tactical Retreats . | . . Traps | -11 -10 ------- Run | Yrd Mat Traps Triggered 1 | . 1 Indirectly . | . . Trap Hack Attempts . | . . Triggered . | . . Disarmed . | . . Reprogrammed . | . . Reused . | . . Traps Extracted . | . . Installed . | . . Triggered . | . . Machines | -11 -10 ---------- Run | Yrd Mat Machines Disabled 2 | . 2 Max in Single Turn 1 | . 1 Machines Repaired . | . . Machines Dismantled . | . . Machines Sabotaged . | . . Overloaded Fab Kills . | . . Hacking | -11 -10 --------- Run | Yrd Mat Machines Accessed 3 | . 3 Terminals 2 | . 2 Fabricators . | . . Repair Stations . | . . Recycling Units 1 | . 1 Scanalyzers . | . . Garrison Access . | . . Total Hacks 13 | . 13 Successful 12 | . 12 Failed 1 | . 1 Catastrophic . | . . Database Lockouts . | . . Manual . | . . Terminals 6 | . 6 Fabricators . | . . Repair Stations . | . . Recycling Units 7 | . 7 Scanalyzers . | . . Garrison Access . | . . Terminal Hacks 5 | . 5 Record 2 | . 2 Prototype ID Bank 1 | . 1 Alert Level 2 | . 2 Fabricator Hacks . | . . Repair Station Hacks . | . . Recycling Unit Hacks 7 | . 7 Recycle Component 4 | . 4 Process 1 | . 1 Report Inventory 2 | . 2 Scanalyzer . | . . Garrison Access Hacks . | . . Unauthorized Hacks . | . . Terminals . | . . Fabricators . | . . Repair Stations . | . . Recycling Units . | . . Scanalyzers . | . . Garrison Access . | . . Data Cores Recovered . | . . Used . | . . Hacking Detections 2 | . 2 Full Trace Events 1 | . 1 Feedback Events . | . . Feedback Blocked . | . . Robot Schematics Acquired . | . . Robots Built . | . . Authchips . | . . Time . | . . Total Robot Build Rating . | . . Part Schematics Acquired . | . . Parts Built . | . . Authchips . | . . Time . | . . Total Part Build Rating . | . . Parts Repaired . | . . Time . | . . Parts Recycled 4 | . 4 Recycled Matter 370 | . 370 Retrieved Matter . | . . Retrieved Components . | . . Parts Scanalyzed . | . . Part Schematics Acquired . | . . Parts Damaged . | . . Bothacking | -11 -10 ------------ Run | Yrd Mat Used RIF Installer . | . . Robots Hacked . | . . Non-combat . | . . Combat . | . . Robot Hacks Applied . | . . Relay Couplers Released . | . . Fabnet Peak Effective % . | . . Robots Rewired . | . . Allies Hacked . | . . Hacks Repelled . | . . Allies | -11 -10 -------- Run | Yrd Mat Total Allies . | . . Largest Group . | . . Highest-Rated Group . | . . Highest-Rated Ally . | . . Total Orders . | . . Ally Attacks . | . . Total Damage . | . . Kills . | . . Allies Corrupted . | . . Allies Melted . | . . Intel | -11 -10 ------- Run | Yrd Mat Robot Analysis Total . | . . Derelict Logs Recovered . | . . Drone Launches . | . . Drone Recoveries . | . . Exploration | -11 -10 ------------- Run | Yrd Mat Turns Passed 979 | 121 858 Spaces Moved 394 | 110 284 Core 58 | 39 19 Treads . | . . Legs 336 | 71 265 Wheels . | . . Hover . | . . Flight . | . . Fastest Speed 50 | 50 120 Average Speed 212 | 95 257 Slowest Speed 1500 | 120 1500 Overloaded Moves . | . . Propulsion Burnouts . | . . Robots Hopped . | . . Cave-ins Triggered . | . . Exploration Rate (%) 21 | 5 37 Regions Visited 1 Branch Regions . Pre-discovered Areas . | . . Known Exits Taken . | . . Unknown Exits Taken 1 | 1 . Scrap Searched . | . . Spaces Dug . | . . Terrain Destroyed 19 | . 19 Melee . | . . Projectile . | . . AOE 19 | . 19 Terrain Rammed . | . . Walls Destroyed . | . . Machines Disabled . | . . Actions | -11 -10 --------- Run | Yrd Mat Total 472 | 121 351 Wait . | . . Move 393 | 109 284 Hop . | . . Pick Up 21 | 5 16 Fast Attach 4 | 3 1 Attach 8 | 2 6 Detach . | . . Swap 4 | . 4 Drop 3 | . 3 Fire 39 | 2 37 Melee . | . . Ram . | . . Kick . | . . Crush . | . . Escape Stasis . | . . Rewire . | . . Trap . | . . Miscellaneous . | . . Route ------- -11/Scrapyard -10/Materials History --------- Turn | Location | Event 2 | -11/Scrapyard | Met Revision 17 100 | -11/Scrapyard | Discovered new exit (range 8) 122 | -11/Scrapyard | Entered Materials 300 | -10/Materials | Build established: Mutant 722 | -10/Materials | Lost 4 parts (1p2n1w) 843 | -10/Materials | Core integrity fell below 50% 867 | -10/Materials | Core integrity fell below 20% 900 | -10/Materials | Lost 3 parts (1n2w) 980 | -10/Materials | Destroyed by G-47 Trooper with Particle Gun Last Messages --------------- U-05 Engineer lays Concrete. U-05 Engineer builds a Wall. U-05 Engineer lays Concrete. U-05 Engineer builds a Wall. U-05 Engineer lays Concrete. U-05 Engineer builds a Wall. U-05 Engineer lays Concrete. U-05 Engineer builds a Wall. R-06 Scavenger collects Lgt. Ion Engine. R-06 Scavenger collects Com. Wheel. U-05 Engineer builds a Wall. R-06 Scavenger collects Sml. Storage Unit. U-05 Engineer lays Concrete. R-06 Scavenger collects Lgt. Treads. U-05 Engineer lays Concrete. K-01 Serf collects debris. R-06 Scavenger collects Structural Scanner. K-01 Serf collects debris. Acquired 18 matter. Grenade Launcher destroyed. Map ----- +----------------------------------------------------+ | ????????????#######+######## #??? #???? | | ?????????????# #### ##### | | ?????????????# | | ?????????????# ##### | | ?????????????# #?# | | ?????????????############### #?# T | | ???????????????????????????# #?# | | ???????????????????????????# #?# | | ???????????????????????????# ### | | ???????????????????????????# #T### | | ?????????????#?????????????# | | ????????????? ?????????????# | | ????????????? ?????????????# """ | | ????????????"" ????????????# """ | | ???????????""" ????????????# """ | | ???????????""" ??????????### | | ????????????"" ??????????#"" % | | ?????????????" ?????##???#"Y """ """ " | | ?????????????? #######???#"" """ """ """ | | ?????#####+##### ####### """ "" """ | | ?????# | | ?????# u | | ?????# u % | | ?????# #### #### ##########T### | | ????????? ??### %## #??????###?# | | ????????# #??# # @ ## #??????????# ##### | | ????????###???###% %#! #??????????# #???? | | ????????????????# ####?????????? ????? | | ????????????????# # ???????????? ????? | | ????????????????# # ????????????? ????? | | ????????????????# #? ??????????????????? | | ????????????????# #? ?????????????????? | | ????????????????# #?? ????????????????? | | ????????????????# #??? ""???????????????? | | ????????????????# +????""???????????????? | | ????????????????# #?????????????????????? | | ????????????????#g g#?????????????????????? | | ????????????????# #?????????????????????? | | ???????????????? ?????????????????????? | | ???????????????? ?????????????????????? | | ???????????????? ?????????????????????? | | ???????????????? ?????????????????????? | | ??????????????????????????????????????????? | | ??????????????????????????????????????????? | | ??????????????????????????????????????????? | | ??????????????????????????????????????????? | | ??????????????????????????????????????????? | | ??????????????????????????????????????????? | | ??????????????????????????????????????????? | | ??????????????????????????????????????????? | +----------------------------------------------------+ Best States ------------- Heat Dissipation 25 Energy Generation 10 Energy Capacity 250 Matter Stores 300 Matter Capacity 300 Sight Range 16 Robot Scan Range 14 Terrain Scan Density 10 Weapon Shielding 33 Evasion (%) 55 Item Schematics ----------------- None Robot Schematics ------------------ None Fabricated ------------ Nothing Alien Tech Used ----------------- None Achievements -------------- Loot Pinata Uninvited Guest Challenges ------------ None Game ------ Seed ImpactTractorTriangulator Manual? 0 Play Time 00:16:24 Cumulative 0.4 hours Start 2024.10.26 @ 10:53:27 End 2024.10.26 @ 11:12:44 Sessions 1 Manual Loads 0 Difficulty Rogue Special Mode None Game No. 2 Rogue 2 Adventurer 0 Explorer 0 Win Type - Total 0 Types 0/0/0/0/0/0/0/0/0 Lore% 0 Gallery% 1 Achievement% 1 Wizard Run 0 Options --------- Layout 1 ASCII 0 Keyboard 0 Movement Arrows Keybinds 0 Fullscreen 2 Font 36/Smallcaps Map View 50x43 Zoom Use 0% Tactical HUD 0 Map Filters NONE Filters NONE Steam 0 RUN: 245bdc35-b158-46bc-ab46-3380201d2c50